fUSD/lending_fUSD_20250206
["ID","MTS","AMOUNT","RATE_DAILY","PERIOD"]
[351829342,1738804264989,-104816.81548872,0.00027,30]
[351829343,1738804264999,-18359.89549352,0.00027,2]
[351829344,1738804265009,-900.0,0.00027,28]
[351829345,1738804265021,-34891.10672049,0.00027,60]
[351829346,1738804265031,-19277.59268441,0.00027,60]
[351829347,1738804265041,-3847.13037417,0.00027,60]
[351829348,1738804265053,-6430.56914027,0.00027,2]
[351829349,1738804265063,-1000.0,0.00027,10]
[351829350,1738804265073,-493.94386,0.00027,120]
[351829351,1738804265082,-1000.0,0.00027,120]
[351829352,1738804265093,-900.0,0.00027,2]
[351829353,1738804265103,-2000.0,0.00027,2]
[351829354,1738804265113,-2112.872555,0.0002701,2]
[351829355,1738804265122,-500.0,0.00027062,120]
[351829356,1738804265132,-493.94386,0.000271,120]
[351829357,1738804265142,-3507.17,0.00027123,2]
[351829358,1738804265152,-1059.0,0.00027165,2]
[351829359,1738804265162,-493.94386,0.000272,120]
[351829360,1738804265174,-1011.96459189,0.000272,44]
[351829361,1738804265183,-1011.96459185,0.000272,44]
[351829362,1738804265192,-1011.96459185,0.000272,44]
[351829363,1738804265202,-1011.96459185,0.000272,44]
[351829364,1738804265211,-1011.96459185,0.000272,44]
[351829365,1738804265221,-150.0,0.00027253,2]
[351829366,1738804265230,-493.94386,0.000273,120]
[351829367,1738804265239,-951.46290918,0.0002736,120]
[351829368,1738804265249,-150.0,0.00027397,4]
[351829369,1738804265259,-150.0,0.00027397,4]
[351829370,1738804265268,-150.0,0.00027397,4]
[351829371,1738804265277,-150.0,0.00027397,4]
[351829372,1738804265286,-150.0,0.00027397,4]
[351829373,1738804265296,-150.0,0.00027397,4]
[351829374,1738804265305,-150.0,0.00027397,4]
[351829375,1738804265315,-150.0,0.00027397,4]
[351829376,1738804265324,-224.65478529,0.00027397,4]
[351829377,1738804265334,-860.65531073,0.00027397,4]
[351829378,1738804265343,-189.48680725,0.00027397,30]
[351829379,1738804265353,-202.30039854,0.00027397,60]
[351829380,1738804265362,-493.85,0.00027397,2]
[351829381,1738804265372,-1396.52,0.00027397,120]
[351829382,1738804265382,-151.0,0.00027397,7]
[351829383,1738804265392,-151.0,0.00027397,7]
[351829384,1738804265401,-151.0,0.00027397,7]
[351829385,1738804265411,-151.0,0.00027397,7]
[351829386,1738804265421,-151.0,0.00027397,7]
[351829387,1738804265431,-300.0,0.000274,2]
[351829388,1738804265440,-493.94386,0.000274,120]
[351829389,1738804265449,-191.91324413,0.000275,2]
[351829390,1738804265459,-493.94386,0.000275,120]
[351829391,1738804265468,-493.94386,0.000276,120]
[351829392,1738804265478,-250.11,0.00027671,2]
[351829393,1738804265487,-493.94386,0.000277,120]
[351829394,1738804265496,-4084.31,0.000277,7]
[351829395,1738804265506,-150.0,0.00027758,2]
[351829396,1738804265515,-500.0,0.00027792,120]
[351829397,1738804265525,-493.94393,0.000278,120]
[351829398,1738804265535,-177.73,0.00027945,91]
[351829399,1738804265545,-392.0,0.0002797,30]
[351829400,1738804265556,-284.89,0.0002797,120]
[351829401,1738804265565,-392.0,0.0002798,30]
[351829402,1738804265575,-150.5,0.0002798,120]
[351829403,1738804265584,-392.0,0.0002799,30]
[351829404,1738804265594,-150.5,0.0002799,120]
[351829405,1738804265603,-44613.02595936,0.00028,4]
[351829406,1738804265692,-1078.2000003,0.00028,4]
[351829407,1738804265724,-500.0,0.00020106,4]
[351829408,1738804265733,-436.4657594,0.00020155,4]
[351829409,1738804265775,-519.39,0.00019109,7]
[351829410,1738804265785,-500.0,0.00020106,4]
[351829411,1738804265794,-500.0,0.00020106,4]
[351829412,1738804265803,-500.0,0.00020106,4]
[351829413,1738804265812,-63.5342406,0.00020155,4]
[351829414,1738804265822,-500.0,0.00020155,4]
[351829415,1738804265831,-364.7659302,0.00020155,4]
[351829416,1738804265840,-500.0,0.00020155,4]
[351829417,1738804265850,-487.76,0.00020155,4]
[351829418,1738804265860,-1594.54982922,0.00028,4]
[351829419,1738804265872,-8596.29545054,0.00028,4]
[351829420,1738804265883,-51902.37607406,0.00028,4]
[351829421,1738804265894,-14580.05719193,0.00028,4]
[351829422,1738804265906,-500.0,0.00028,4]
[351829438,1738805431863,-2330.8938,8.256e-05,2]
[351829439,1738805431872,-3880.0135,8.699e-05,2]
[351829440,1738805431882,-1481.653,8.699e-05,2]
[351829441,1738805431892,-594.42365764,8.813e-05,2]
[351829442,1738805431901,-150.0,8.835e-05,2]
[351829443,1738805431910,-387.3388,8.836e-05,2]
[351829444,1738805431919,-6575.5289,8.836e-05,2]
[351829445,1738805431929,-174.1966,8.836e-05,2]
[351829446,1738805431938,-221.5144,8.836e-05,2]
[351829447,1738805431948,-1492.6964,8.836e-05,2]
[351829448,1738805431957,-792.6537,8.836e-05,2]
[351829449,1738805431966,-3740.2929,8.836e-05,2]
[351829450,1738805431975,-1083.2654,8.836e-05,2]
[351829451,1738805431985,-483.6603,8.836e-05,2]
[351829452,1738805431995,-758.2643,8.836e-05,2]
[351829453,1738805432004,-26358.60434236,8.836e-05,2]
[351829454,1738805432016,-17907.19127124,8.836e-05,2]
[351829455,1738805432027,-400.86620647,8.836e-05,2]
[351829461,1738805432251,-532229.76137993,8.836e-05,2]
[351829463,1738805432262,-2610.4163,8.836e-05,2]
[351829466,1738805432272,-1895.366,8.851e-05,2]
[351829467,1738805432282,-2034.523,8.973e-05,2]
[351829469,1738805432291,-4517.4182,8.973e-05,2]
[351829472,1738805432302,-255.0,9.718e-05,2]
[351829474,1738805432311,-200.0,9.932e-05,2]
[351829476,1738805432321,-10925.15002047,9.932e-05,2]
[351829478,1738805432331,-2658.76583127,9.933e-05,2]
[351829480,1738805432341,-200.0,9.935e-05,2]
[351829481,1738805432352,-14087.47879636,9.937e-05,2]
[351829483,1738805432362,-14087.47879636,9.938e-05,2]
[351829485,1738805432371,-2124.89508445,9.938e-05,2]
[351829487,1738805432383,-459.61292459,9.939e-05,2]
[351829489,1738805432392,-2658.76583127,9.944e-05,2]
[351829491,1738805432402,-2658.76583127,9.945e-05,2]
[351829493,1738805432412,-2124.89508445,9.946e-05,2]
[351829496,1738805432423,-2124.89508445,9.95e-05,2]
[351829498,1738805432434,-14087.47879636,9.952e-05,2]
[351829500,1738805432443,-10925.15002047,9.955e-05,2]
[351829501,1738805432453,-10925.15002047,9.957e-05,2]
[351829504,1738805432463,-2124.89508445,9.962e-05,2]
[351829505,1738805432472,-1220.55795595,9.964e-05,2]
[351829508,1738805432482,-10925.15002047,9.97e-05,2]
[351829509,1738805432492,-1220.55795595,9.972e-05,2]
[351829512,1738805432502,-1220.55795595,9.976e-05,2]
[351829513,1738805432512,-2658.76583127,9.976e-05,2]
[351829516,1738805432521,-1220.55795595,9.977e-05,2]
[351829517,1738805432531,-459.61292459,9.978e-05,2]
[351829520,1738805432541,-459.61292459,9.978e-05,2]
[351829522,1738805432550,-14087.47879636,9.986e-05,2]
[351829524,1738805432560,-459.61292459,9.997e-05,2]
[351829526,1738805432569,-200.0,9.999e-05,2]
[351829528,1738805432578,-550.0,0.00013,2]
[351829530,1738805432587,-150.99,0.00013699,2]
[351829532,1738805432596,-9999.99,0.00013699,2]
[351829533,1738805432606,-299.99,0.00013699,2]
[351829535,1738805432615,-2062.47,0.00013699,2]
[351829537,1738805432624,-30353.55,0.00013699,2]
[351829539,1738805432634,-999.99,0.00013699,2]
[351829542,1738805432645,-6606.1,0.00013699,2]
[351829544,1738805432654,-150.99,0.00013699,2]
[351829546,1738805432664,-158.35,0.00014596,2]
[351829547,1738805432673,-600.0,0.00015,2]
[351829548,1738805432683,-268130.50678784,0.000162,2]
[351829549,1738805432692,-1465.732,0.00016224,2]
[351829550,1738805432701,-1000.0,0.00016761,2]
[351829551,1738805432710,-200.0,0.00016901,2]
[351829552,1738805432719,-650.0,0.00017,2]
[351829553,1738805432728,-2798.62,0.00017041,2]
[351829554,1738805432738,-410.67,0.00017132,2]
[351829555,1738805432747,-1025.15,0.00017521,30]
[351829556,1738805432756,-153.85,0.00017577,2]
[351829557,1738805432765,-250.0,0.00017945,2]
[351829558,1738805432775,-205.87,0.00018097,2]
[351829559,1738805432784,-1000.0,0.00018856,2]
[351829560,1738805432794,-700.0,0.00019,2]
[351829561,1738805432805,-150.0,0.00019178,2]
[351829562,1738805432814,-911.451,0.00019244,2]
[351829563,1738805432823,-2953.0,0.00019244,2]
[351829564,1738805432832,-907.0,0.00019244,2]
[351829565,1738805432842,-1369.8,0.00019244,2]
[351829566,1738805432851,-538.0,0.00019244,2]
[351829567,1738805432860,-4023.0,0.00019244,2]
[351829568,1738805432869,-3925.462,0.00019244,2]
[351829569,1738805432878,-1078.391,0.00019244,2]
[351829570,1738805432887,-242.959,0.00019244,2]
[351829571,1738805432896,-7692.0,0.000193,2]
[351829572,1738805432906,-410.67,0.00019396,2]
[351829573,1738805432915,-150.0,0.00019683,2]
[351829574,1738805432924,-500.0,0.0002,4]
[351829575,1738805432933,-625.03744311,0.0002,4]
[351829576,1738805432942,-500.0,0.0002,2]
[351829577,1738805432951,-502.71915345,0.0002,4]
[351829578,1738805432962,-500.0,0.0002,4]
[351829579,1738805432971,-500.0,0.0002,4]
[351829580,1738805432981,-155.39,0.0002,31]
[351829581,1738805432990,-155.39,0.0002,31]
[351829582,1738805432999,-155.39,0.0002,31]
[351829583,1738805433008,-155.39,0.0002,31]
[351829584,1738805433017,-155.39,0.0002,31]
[351829585,1738805433027,-155.39,0.0002,31]
[351829586,1738805433036,-155.39,0.0002,31]
[351829587,1738805433046,-155.39,0.0002,31]
[351829588,1738805433056,-519.45492713,0.0002,4]
[351829589,1738805433066,-500.0,0.0002,4]
[351829590,1738805433077,-500.0,0.0002,4]
[351829591,1738805433086,-500.0,0.0002,4]
[351829592,1738805433096,-500.0,0.0002,4]
[351829593,1738805433106,-500.0,0.0002,4]
[351829594,1738805433116,-500.0,0.0002,4]
[351829595,1738805433126,-500.0,0.0002,4]
[351829596,1738805433136,-240.96852718,0.0002,4]
[351829597,1738805433148,-500.0,0.0002,4]
[351829598,1738805433158,-412.43147282,0.0002,4]
[351829599,1738805433168,-500.0,0.0002,4]
[351829600,1738805433178,-500.0,0.0002,4]
[351829601,1738805433189,-501.61419468,0.0002,4]
[351829602,1738805433199,-500.0,0.0002,4]
[351829603,1738805433209,-231.07760921,0.0002,4]
[351829604,1738805433219,-500.0,0.0002,4]
[351829605,1738805433229,-500.0,0.0002,4]
[351829606,1738805433239,-500.0,0.0002,4]
[351829607,1738805433250,-500.0,0.0002,4]
[351829608,1738805433259,-500.0,0.0002,4]
[351829609,1738805433270,-330.51,0.0002,4]
[351829610,1738805433280,-500.0,0.0002,4]
[351829611,1738805433291,-263.42,0.0002,4]
[351829612,1738805433301,-500.0,0.0002,4]
[351829613,1738805433312,-241009.66697956,0.0002,4]
[351829619,1738805437561,-500.0,8.835e-05,2]
[351829620,1738805437570,-500.0,8.835e-05,2]
[351829621,1738805437579,-242.76369544,8.835e-05,2]
[351829622,1738805437589,-2500.0,8.851e-05,2]
[351829623,1738805437598,-813.132,0.00019244,2]
[351829624,1738805437607,-271804.67596036,0.0002,4]
[351829625,1738805437618,-810.60000698,0.0002,4]
[351829626,1738805437880,-208462.35154599,0.0002,4]
[351829627,1738805437890,-3722.92612588,0.0002,2]
[351829628,1738805437899,-500.0,0.0002,4]
[351829629,1738805437911,-365.53,0.0002,4]
[351829630,1738805437920,-2782.06477498,0.0002,7]
[351829631,1738805437929,-797.24745243,0.0002,7]
[351829632,1738805437939,-414.97482945,0.0002,4]
[351829633,1738805437948,-500.0,0.0002,4]
[351829634,1738805437959,-500.0,0.0002,4]
[351829635,1738805437968,-500.0,0.0002,4]
[351829636,1738805437978,-500.0,0.0002,4]
[351829637,1738805437988,-500.0,0.0002,4]
[351829638,1738805437997,-500.0,0.0002,4]
[351829639,1738805438007,-500.0,0.0002,4]
[351829640,1738805438016,-323.44,0.0002,4]
[351829641,1738805438026,-500.0,0.0002,4]
[351829642,1738805438036,-500.0,0.0002,4]
[351829643,1738805438046,-500.0,0.0002,4]
[351829644,1738805438057,-500.0,0.0002,4]
[351829645,1738805438066,-500.0,0.0002,4]
[351829646,1738805438076,-513.67792107,0.0002,4]
[351829648,1738805438087,-503.07938446,0.0002,4]
[351829649,1738805438096,-501.46727765,0.0002,4]
[351829651,1738805438106,-504.53605399,0.0002,4]
[351829653,1738805438115,-506.58828347,0.0002,4]
[351829655,1738805438125,-500.0,0.0002,4]
[351829657,1738805438135,-500.0,0.0002,4]
[351829659,1738805438144,-506.79777187,0.0002,4]
[351829661,1738805438153,-509.86059737,0.0002,4]
[351829663,1738805438162,-316.78786919,0.0002,4]
[351829665,1738805438171,-164.0,0.000201,2]
[351829667,1738805438180,-500.0,0.00020104,4]
[351829669,1738805438189,-407.33,0.00020104,4]
[351829671,1738805438198,-588.14,0.00020104,4]
[351829673,1738805438208,-500.0,0.00020104,4]
[351829675,1738805438217,-592.72223712,0.00020104,4]
[351829677,1738805438226,-1025.15,0.00020105,30]
[351829679,1738805438236,-500.0,0.00020105,4]
[351829681,1738805438245,-516.57844915,0.00020105,4]
[351829683,1738805438254,-500.0,0.00020105,4]
[351829685,1738805438263,-500.0,0.00020105,4]
[351829687,1738805438272,-500.0,0.00020105,4]
[351829689,1738805438281,-500.0,0.00020105,4]
[351829691,1738805438291,-500.0,0.00020105,4]
[351829693,1738805438300,-500.0,0.00020105,4]
[351829695,1738805438309,-500.0,0.00020105,4]
[351829697,1738805438319,-500.0,0.00020105,4]
[351829699,1738805438328,-500.0,0.00020105,4]
[351829701,1738805438339,-500.0,0.00020105,4]
[351829703,1738805438351,-500.0,0.00020105,4]
[351829705,1738805438361,-500.0,0.00020105,4]
[351829707,1738805438370,-443.98698017,0.00020105,4]
[351829710,1738805438381,-500.0,0.00020105,4]
[351829712,1738805438390,-500.0,0.00020105,4]
[351829714,1738805438400,-500.0,0.00020105,4]
[351829715,1738805438410,-500.0,0.00020105,4]
[351829717,1738805438422,-500.0,0.00020105,4]
[351829719,1738805438431,-500.0,0.00020105,4]
[351829721,1738805438441,-179.94853245,0.00020105,4]
[351829724,1738805438451,-500.0,0.00020105,4]
[351829726,1738805438460,-500.0,0.00020105,4]
[351829728,1738805438469,-500.0,0.00020105,4]
[351829730,1738805438480,-500.0,0.00020105,2]
[351829731,1738805438489,-500.0,0.00020105,4]
[351829733,1738805438497,-500.0,0.00020105,4]
[351829735,1738805438508,-500.0,0.00020105,4]
[351829737,1738805438517,-500.0,0.00020105,4]
[351829739,1738805438526,-500.0,0.00020105,4]
[351829741,1738805438535,-500.0,0.00020105,4]
[351829743,1738805438544,-500.0,0.00020105,4]
[351829745,1738805438553,-500.0,0.00020105,4]
[351829747,1738805438563,-500.0,0.00020105,4]
[351829749,1738805438572,-500.56,0.00020105,4]
[351829751,1738805438582,-500.0,0.00020105,4]
[351829753,1738805438591,-500.0,0.00020105,4]
[351829755,1738805438600,-536.68922339,0.00020105,4]
[351829757,1738805438609,-500.0,0.00020105,4]
[351829759,1738805438618,-500.0,0.00020105,4]
[351829761,1738805438627,-500.0,0.00020105,4]
[351829763,1738805438636,-500.0,0.00020105,4]
[351829765,1738805438645,-500.0,0.00020105,4]
[351829767,1738805438656,-500.0,0.00020105,4]
[351829769,1738805438666,-500.0,0.00020105,4]
[351829771,1738805438676,-500.0,0.00020105,4]
[351829773,1738805438685,-500.0,0.00020105,4]
[351829775,1738805438694,-211.34161977,0.00020106,4]
[351829777,1738805438703,-500.0,0.00020106,4]
[351829779,1738805438713,-500.0,0.00020106,4]
[351829781,1738805438722,-638.97,0.00020106,4]
[351829783,1738805438731,-500.0,0.00020106,4]
[351829785,1738805438740,-500.0,0.00020106,4]
[351829787,1738805438749,-500.0,0.00020106,4]
[351829789,1738805438762,-580.83,0.00020106,4]
[351829791,1738805438771,-500.0,0.00020106,4]
[351829793,1738805438780,-521.43,0.00020106,4]
[351829795,1738805438789,-512.33,0.00020106,4]
[351829797,1738805438798,-500.0,0.00020106,4]
[351829799,1738805438807,-500.0,0.00020106,4]
[351829801,1738805438816,-500.0,0.00020106,4]
[351829803,1738805438825,-500.0,0.00020106,4]
[351829805,1738805438834,-500.0,0.00020106,4]
[351829807,1738805438843,-500.0,0.00020106,4]
[351829809,1738805438852,-500.0,0.00020106,4]
[351829811,1738805438862,-500.0,0.00020106,4]
[351829813,1738805438871,-500.0,0.00020106,4]
[351829815,1738805438880,-500.0,0.00020106,4]
[351829817,1738805438889,-500.0,0.00020106,4]
[351829819,1738805438898,-500.0,0.00020106,4]
[351829821,1738805438908,-411.90744639,0.00020106,4]
[351829823,1738805438917,-500.0,0.00020106,4]
[351829825,1738805438926,-500.0,0.00020106,4]
[351829827,1738805438935,-500.0,0.00020106,4]
[351829829,1738805438944,-500.0,0.00020106,4]
[351829831,1738805438953,-500.0,0.00020106,4]
[351829833,1738805438963,-500.0,0.00020106,4]
[351829835,1738805438972,-500.0,0.00020106,4]
[351829837,1738805438981,-500.0,0.00020106,4]
[351829839,1738805438991,-500.0,0.00020106,4]
[351829841,1738805439000,-500.0,0.00020106,4]
[351829843,1738805439009,-500.0,0.00020106,4]
[351829845,1738805439018,-500.0,0.00020106,4]
[351829846,1738805439027,-500.0,0.00020106,4]
[351829848,1738805439037,-500.0,0.00020106,4]
[351829851,1738805439047,-500.0,0.00020106,2]
[351829853,1738805439056,-500.0,0.00020106,4]
[351829855,1738805439066,-500.0,0.00020106,4]
[351829857,1738805439075,-500.0,0.00020106,4]
[351829859,1738805439084,-500.0,0.00020106,4]
[351829861,1738805439093,-500.0,0.00020106,4]
[351829862,1738805439102,-500.0,0.00020106,4]
[351829863,1738805439111,-500.0,0.00020106,4]
[351829864,1738805439119,-500.0,0.00020106,4]
[351829865,1738805439128,-500.0,0.00020106,4]
[351829866,1738805439137,-500.0,0.00020106,4]
[351829867,1738805439146,-500.0,0.00020106,4]
[351829868,1738805439158,-500.0,0.00020106,4]
[351829869,1738805439167,-500.0,0.00020106,4]
[351829870,1738805439176,-500.0,0.00020154,4]
[351829871,1738805439185,-648.65205031,0.00020154,4]
[351829872,1738805439194,-500.0,0.00020154,4]
[351829873,1738805439203,-510.63869165,0.00020154,4]
[351829874,1738805439212,-500.0,0.00020154,4]
[351829875,1738805439221,-500.0,0.00020154,4]
[351829876,1738805439230,-500.0,0.00020154,4]
[351829877,1738805439242,-500.0,0.00020154,4]
[351829878,1738805439252,-512.79929901,0.00020154,4]
[351829879,1738805439261,-500.0,0.00020154,4]
[351829880,1738805439274,-500.0,0.00020154,4]
[351829882,1738805439285,-500.0,0.00020154,4]
[351829884,1738805439294,-500.0,0.00020154,4]
[351829886,1738805439303,-500.0,0.00020154,4]
[351829888,1738805439312,-500.0,0.00020154,4]
[351829890,1738805439323,-500.0,0.00020154,4]
[351829892,1738805439333,-500.0,0.00020154,4]
[351829894,1738805439344,-500.0,0.00020154,4]
[351829896,1738805439355,-500.0,0.00020154,4]
[351829898,1738805439365,-500.0,0.00020154,4]
[351829900,1738805439374,-500.0,0.00020154,4]
[351829902,1738805439384,-500.0,0.00020154,4]
[351829904,1738805439394,-500.0,0.00020154,4]
[351829906,1738805439405,-500.0,0.00020154,4]
[351829908,1738805439414,-500.0,0.00020154,4]
[351829910,1738805439425,-500.0,0.00020154,4]
[351829912,1738805439435,-500.0,0.00020154,4]
[351829915,1738805439444,-500.0,0.00020154,4]
[351829917,1738805439454,-500.0,0.00020154,4]
[351829918,1738805439463,-500.0,0.00020154,4]
[351829921,1738805439473,-500.0,0.00020154,4]
[351829922,1738805439482,-500.0,0.00020154,4]
[351829924,1738805439492,-500.0,0.00020154,4]
[351829926,1738805439501,-165.69,0.00020154,4]
[351829942,1738805439622,-500.0,0.00020154,4]
[351829944,1738805439632,-500.0,0.00020154,4]
[351829946,1738805439641,-500.0,0.00020154,4]
[351829948,1738805439653,-236.17,0.00020154,4]
[351829950,1738805439662,-500.0,0.00020154,4]
[351829952,1738805439671,-500.0,0.00020154,4]
[351829954,1738805439681,-500.0,0.00020154,4]
[351829956,1738805439690,-500.0,0.00020154,4]
[351829958,1738805439699,-500.0,0.00020154,4]
[351829960,1738805439708,-500.0,0.00020154,4]
[351829962,1738805439718,-500.0,0.00020154,4]
[351829964,1738805439726,-500.0,0.00020154,4]
[351829966,1738805439735,-500.0,0.00020154,4]
[351829968,1738805439744,-500.0,0.00020154,4]
[351829970,1738805439755,-500.0,0.00020154,2]
[351829972,1738805439764,-500.0,0.00020154,4]
[351829974,1738805439774,-500.0,0.00020154,4]
[351829976,1738805439783,-453.97,0.00020154,4]
[351829978,1738805439792,-235.1838027,0.00020154,4]
[351829980,1738805439802,-500.0,0.00020154,4]
[351829982,1738805439812,-500.0,0.00020154,4]
[351829984,1738805439820,-500.0,0.00020154,4]
[351829986,1738805439830,-500.0,0.00020154,4]
[351829988,1738805439839,-500.0,0.00020154,4]
[351829990,1738805439848,-500.0,0.00020154,4]
[351829992,1738805439857,-500.0,0.00020154,4]
[351829994,1738805439867,-500.0,0.00020154,4]
[351829996,1738805439875,-184.86,0.00020154,4]
[351829998,1738805439885,-500.0,0.00020154,4]
[351830000,1738805439894,-500.0,0.00020154,4]
[351830002,1738805439905,-500.0,0.00020154,4]
[351830004,1738805439914,-500.0,0.00020154,4]
[351830006,1738805439923,-500.0,0.00020154,4]
[351830008,1738805439933,-500.0,0.00020154,4]
[351830010,1738805439943,-500.0,0.00020154,4]
[351830012,1738805439953,-500.0,0.00020154,4]
[351830014,1738805439962,-540.17,0.00020154,4]
[351830016,1738805439972,-1000.0,0.00020154,4]
[351830018,1738805439981,-500.0,0.00020154,4]
[351830020,1738805439991,-500.0,0.00020154,4]
[351830022,1738805440000,-500.0,0.00020154,4]
[351830024,1738805440010,-500.0,0.00020154,4]
[351830026,1738805440019,-500.0,0.00020154,4]
[351830028,1738805440028,-500.0,0.00020154,4]
[351830030,1738805440037,-500.0,0.00020154,4]
[351830032,1738805440047,-500.0,0.00020154,4]
[351830034,1738805440056,-500.0,0.00020154,4]
[351830036,1738805440065,-500.0,0.00020154,4]
[351830038,1738805440074,-500.0,0.00020154,4]
[351830040,1738805440083,-500.0,0.00020154,4]
[351830042,1738805440092,-500.0,0.00020154,4]
[351830044,1738805440101,-500.0,0.00020154,4]
[351830046,1738805440110,-500.0,0.00020154,4]
[351830048,1738805440119,-500.0,0.00020154,4]
[351830050,1738805440128,-500.0,0.00020154,4]
[351830052,1738805440138,-500.0,0.00020154,4]
[351830054,1738805440147,-500.0,0.00020154,4]
[351830056,1738805440157,-500.0,0.00020154,4]
[351830058,1738805440167,-505.4041061,0.00020154,4]
[351830060,1738805440175,-500.0,0.00020154,4]
[351830062,1738805440184,-500.0,0.00020154,4]
[351830064,1738805440193,-500.0,0.00020154,4]
[351830066,1738805440202,-500.0,0.00020154,4]
[351830068,1738805440211,-462.99,0.00020155,4]
[351830070,1738805440220,-500.0,0.00020155,4]
[351830072,1738805440230,-500.0,0.00020155,4]
[351830074,1738805440239,-500.0,0.00020155,4]
[351830076,1738805440248,-500.0,0.00020155,4]
[351830078,1738805440257,-500.0,0.00020155,4]
[351830080,1738805440266,-214.47693078,0.00020155,4]
[351830082,1738805440276,-500.0,0.00020155,4]
[351830084,1738805440285,-500.0,0.00020155,4]
[351830086,1738805440295,-500.0,0.00020155,4]
[351830088,1738805440305,-500.0,0.00020155,4]
[351830090,1738805440314,-396.93367461,0.00020155,4]
[351830092,1738805440323,-500.0,0.00020155,4]
[351830094,1738805440332,-499.31,0.00020155,4]
[351830096,1738805440343,-500.0,0.00020155,4]
[351830098,1738805440354,-500.0,0.00020155,4]
[351830100,1738805440364,-500.0,0.00020155,4]
[351830102,1738805440373,-500.0,0.00020155,4]
[351830104,1738805440383,-500.0,0.00020155,4]
[351830106,1738805440393,-328.05510404,0.00020155,4]
[351830108,1738805440402,-500.0,0.00020155,4]
[351830110,1738805440411,-500.0,0.00020155,4]
[351830112,1738805440422,-500.0,0.00020155,2]
[351830114,1738805440431,-500.0,0.00020155,4]
[351830116,1738805440440,-500.0,0.00020155,4]
[351830118,1738805440450,-79225.44986396,0.00020179,2]
[351830120,1738805440459,-1114.83850089,0.00020179,90]
[351830122,1738805440468,-199656.77760736,0.00020179,2]
[351830124,1738805440478,-555.00688207,0.00020179,5]
[351830126,1738805440487,-1471.91144256,0.00020179,10]
[351830128,1738805440496,-999.999998,0.00020179,120]
[351830130,1738805440505,-623.9942063,0.00020179,30]
[351830132,1738805440514,-120754.90174884,0.00020179,2]
[351830134,1738805440523,-697.08260928,0.00020179,16]
[351830136,1738805440532,-6223544.46378529,0.00020179,30]
[351830140,1738805440558,-23244.60800899,0.00020179,30]
[351830381,1738805442795,-67155.08296722,0.00020179,30]
[351830384,1738805442807,-10500.92799993,0.00020179,30]
[351830406,1738805443000,-679.17810761,0.00020179,30]
[351830408,1738805443012,-24896.40180147,0.00020179,30]
[351830666,1738805445728,-500.0,0.0002,4]
[351830668,1738805445737,-500.0,0.0002,4]
[351830670,1738805445747,-500.0,0.00020104,4]
[351830672,1738805445758,-66469.92119815,0.00020179,30]
[351831210,1738806631809,-267.9745,8.699e-05,2]
[351831211,1738806631820,-154.9135,8.699e-05,2]
[351831212,1738806631830,-342.323,8.836e-05,2]
[351831213,1738806631839,-150.26491036,8.973e-05,2]
[351831214,1738806631850,-1079.56097569,8.973e-05,2]
[351831215,1738806631953,-503.75,8.973e-05,2]